bitfinex-derivatives/quotes_BTCF0:USTF0_20230701
["timestamp","ask_amount","ask_price","bid_price","bid_amount"]
[1688169601064,0.3197,30495.0,30494.0,0.01968]
[1688169606075,0.55716125,30495.0,30494.0,0.01968]
[1688169608778,0.55716125,30495.0,30494.0,0.05675914]
[1688169608979,0.55716125,30495.0,30494.0,0.06470167]
[1688169610368,0.55716125,30495.0,30494.0,0.04585222]
[1688169611068,0.43825359,30495.0,30494.0,0.04585222]
[1688169612568,0.55720131,30495.0,30494.0,0.04585222]
[1688169612767,0.23749988,30495.0,30494.0,0.04585222]
[1688169612974,0.04089992,30495.0,30494.0,0.06470167]
[1688169613386,0.04089992,30495.0,30494.0,0.08293136]
[1688169613581,0.2374912,30495.0,30494.0,0.08293136]
[1688169614284,0.2374912,30495.0,30494.0,0.04585222]
[1688169614480,0.04089992,30495.0,30494.0,0.04585222]
[1688169614684,0.22932155,30496.0,30494.0,0.04585222]
[1688169615073,0.22932155,30496.0,30495.0,0.03707914]
[1688169615273,0.22932155,30496.0,30495.0,0.05675814]
[1688169615473,0.11906096,30496.0,30495.0,0.05675814]
[1688169615675,0.34838251,30497.0,30495.0,0.05675814]
[1688169615987,0.11906096,30496.0,30495.0,0.03790869]
[1688169616185,0.11906096,30496.0,30495.0,0.019679]
[1688169616381,0.34838251,30497.0,30494.0,0.33517222]
[1688169616682,0.34838251,30496.0,30494.0,0.32868]
[1688169616884,0.34838251,30495.0,30494.0,0.01968]
[1688169617580,0.70918251,30495.0,30494.0,0.01968]
[1688169620576,0.70918251,30495.0,30494.0,0.03852945]
[1688169621384,0.11906096,30495.0,30494.0,0.03852945]
[1688169621980,0.43396096,30495.0,30494.0,0.03852945]
[1688169622176,0.43396096,30495.0,30494.0,0.05675914]
[1688169622384,0.11906096,30495.0,30494.0,0.05675914]
[1688169624790,0.11906096,30495.0,30494.0,0.01968]
[1688169624984,0.11906096,30495.0,30494.0,0.11115465]
[1688169625189,0.34838251,30495.0,30494.0,0.11115465]
[1688169625491,0.11906096,30495.0,30494.0,0.11115465]
[1688169626779,0.11906096,30495.0,30494.0,0.03852945]
[1688169626981,0.34838251,30495.0,30494.0,0.01968]
[1688169627180,0.34838251,30495.0,30494.0,0.03790969]
[1688169627589,0.34838251,30495.0,30494.0,0.05675914]
[1688169628296,0.34838251,30495.0,30494.0,0.03852945]
[1688169628594,0.34838251,30495.0,30494.0,0.05675914]
[1688169628778,0.34838251,30495.0,30494.0,0.03852945]
[1688169629593,0.34838251,30495.0,30494.0,0.05675914]
[1688169637306,0.11906096,30495.0,30494.0,0.05675914]
[1688169637893,0.11906096,30495.0,30494.0,0.12197547]
[1688169638093,0.11906096,30495.0,30494.0,0.05675914]
[1688169641201,0.11906096,30495.0,30494.0,0.05959155]
[1688169643503,0.04089992,30495.0,30494.0,0.05959155]
[1688169643897,0.04089992,30495.0,30494.0,0.05675914]
[1688169644096,0.39529992,30495.0,30494.0,0.40795914]
[1688169644399,0.47496251,30495.0,30494.0,0.41069899]
[1688169645206,0.12056251,30495.0,30494.0,0.41069899]
[1688169647403,0.12056251,30495.0,30494.0,0.47628263]
[1688169648506,0.23763876,30495.0,30494.0,0.47628263]
[1688169648803,0.30329187,30499.0,30496.0,0.069679]
[1688169648804,0.00049187,30499.0,30496.0,0.069679]
[1688169649005,0.00049187,30499.0,30498.0,0.734878]
[1688169649198,0.00049187,30499.0,30498.0,0.77195714]
[1688169649602,0.00049187,30499.0,30498.0,1.07445714]
[1688169649806,0.00049187,30499.0,30498.0,1.12885265]
[1688169651701,0.00049187,30499.0,30498.0,1.07445714]
[1688169654313,0.00049187,30499.0,30498.0,0.71365714]
[1688169657916,0.00049187,30499.0,30498.0,0.74003956]
[1688169658719,0.03101641,30499.0,30498.0,0.74003956]
[1688169660019,0.03101641,30499.0,30498.0,0.70296042]
[1688169660314,0.03101641,30499.0,30498.0,0.40046042]
[1688169660716,0.03101641,30499.0,30498.0,0.41930987]
[1688169661110,0.03101641,30499.0,30498.0,0.43753956]
[1688169662005,0.03101641,30499.0,30498.0,0.41930987]
[1688169662207,0.03101641,30499.0,30498.0,0.43753956]
[1688169662402,0.03101641,30499.0,30498.0,0.40046042]
[1688169662605,0.40509341,30499.0,30497.0,0.049195]
[1688169662809,0.40350254,30498.0,30496.0,0.019678]
[1688169663020,0.74572454,30497.0,30496.0,0.019678]
[1688169663408,0.74572454,30497.0,30496.0,0.04629605]
[1688169663609,0.76540254,30497.0,30496.0,0.019678]
[1688169663813,0.9618611,30497.0,30495.0,0.049198]
[1688169664118,0.8856869,30496.0,30493.0,0.01378468]
[1688169664316,0.8856869,30496.0,30489.0,0.065614]
[1688169664317,0.91166236,30494.0,30489.0,0.065614]
[1688169664528,0.3533,30490.0,30489.0,0.019683]
[1688169664814,0.51703387,30490.0,30489.0,0.019683]
[1688169665206,0.51703387,30490.0,30489.0,0.374083]
[1688169665207,0.16373387,30490.0,30489.0,0.374083]
[1688169666721,0.16373387,30490.0,30489.0,0.41116214]
[1688169667308,0.51683387,30491.0,30489.0,0.41116214]
[1688169667509,0.51683387,30491.0,30490.0,0.3528]
[1688169667710,0.51683387,30491.0,30490.0,0.40956214]
[1688169668021,0.3531,30491.0,30490.0,0.39133245]
[1688169668210,0.3531,30491.0,30490.0,0.40956214]
[1688169668412,0.3531,30491.0,30490.0,0.39133245]
[1688169669622,0.2468,30491.0,30490.0,0.28673245]
[1688169670620,0.2468,30491.0,30490.0,0.29002425]
[1688169671324,0.2468,30491.0,30490.0,0.2711748]
[1688169671509,0.41044467,30491.0,30490.0,0.2711748]
[1688169671915,0.41044467,30491.0,30490.0,0.30825394]
[1688169672117,0.41044467,30491.0,30490.0,0.29002425]
[1688169673732,0.41044467,30491.0,30490.0,0.30825394]
[1688169674117,0.41044467,30491.0,30490.0,0.29002425]
[1688169674840,0.41044467,30491.0,30490.0,0.2711748]
[1688169679623,0.41084467,30491.0,30490.0,0.2711748]
[1688169682431,0.41084467,30491.0,30490.0,0.29002425]
[1688169685137,0.41084467,30491.0,30490.0,0.2711748]
[1688169685728,0.41084467,30491.0,30490.0,0.29002425]
[1688169687235,0.41084467,30491.0,30490.0,0.2711748]
[1688169689129,0.77164467,30491.0,30490.0,0.2711748]
[1688169689842,0.79132767,30491.0,30490.0,0.2711748]
[1688169690036,0.627683,30491.0,30490.0,0.0229748]
[1688169692031,0.65821705,30491.0,30490.0,0.0229748]
[1688169693036,0.627683,30491.0,30490.0,0.0229748]
[1688169695424,0.6582169,30491.0,30490.0,0.0229748]
[1688169696440,0.2974169,30491.0,30490.0,0.0229748]
[1688169696642,0.6582169,30491.0,30490.0,0.0229748]
[1688169698339,0.85467926,30491.0,30490.0,0.0229748]
[1688169703244,0.71748586,30491.0,30490.0,0.0229748]
[1688169705344,0.94680741,30491.0,30490.0,0.0229748]
[1688169706739,0.05,30489.0,30488.0,0.02626292]
[1688169706938,0.925585,30489.0,30485.0,0.019687]
[1688169707238,0.609,30486.0,30484.0,0.019688]
[1688169707548,0.85440809,30485.0,30484.0,0.019688]
[1688169708642,0.76431709,30485.0,30482.0,0.059067]
[1688169708843,0.6087,30483.0,30482.0,0.059067]
[1688169709044,0.6589229,30483.0,30482.0,0.059067]
[1688169709241,0.6589229,30483.0,30482.0,0.08545348]
[1688169709547,0.9599229,30483.0,30482.0,0.08545348]
[1688169710050,0.9599229,30483.0,30482.0,0.09309863]
[1688169710349,0.6077,30483.0,30482.0,0.09309863]
[1688169710949,0.6077,30483.0,30482.0,0.11132832]
[1688169711140,0.6077,30483.0,30482.0,0.09309863]
[1688169711339,0.77140335,30483.0,30482.0,0.09309863]
[1688169711540,0.77140345,30483.0,30482.0,0.09309863]
[1688169714942,0.6077,30483.0,30482.0,0.09309863]
[1688169715148,0.77140345,30483.0,30482.0,0.09309863]
[1688169715751,0.6077,30483.0,30482.0,0.09309863]
[1688169716453,0.6077,30483.0,30482.0,0.11194808]
[1688169717151,0.6077,30483.0,30482.0,0.09309863]
[1688169717856,0.6077,30483.0,30482.0,0.11194808]
[1688169719354,0.6077,30483.0,30482.0,0.13017777]
[1688169719747,0.6077,30483.0,30482.0,0.09309863]
[1688169720255,0.6077,30483.0,30482.0,0.11194808]
[1688169720842,0.6077,30483.0,30482.0,0.13017777]
[1688169721052,0.6077,30483.0,30482.0,0.11194808]
[1688169721449,0.6077,30483.0,30482.0,0.13017777]
[1688169721649,0.13089294,30483.0,30482.0,0.13017777]
[1688169721847,0.10432295,30483.0,30482.0,0.13017777]
[1688169722153,0.09816671,30483.0,30482.0,0.12822515]
[1688169722660,0.09816671,30483.0,30482.0,0.37642515]
[1688169724257,0.09816671,30483.0,30482.0,0.33934601]
[1688169724448,0.09816671,30483.0,30482.0,0.3575757]
[1688169724758,0.30259551,30485.0,30482.0,0.3575757]
[1688169724951,0.2482,30485.0,30484.0,0.267887]
[1688169725260,0.2482,30485.0,30484.0,0.27347321]
[1688169725752,0.2482,30485.0,30484.0,0.31055235]
[1688169726151,0.2482,30485.0,30484.0,0.27347321]
[1688169726351,0.2482,30485.0,30484.0,0.2917029]
[1688169726550,0.2482,30485.0,30484.0,0.27347321]
[1688169727256,0.41190345,30485.0,30484.0,0.27347321]
[1688169728751,0.41190345,30485.0,30484.0,0.2917029]
[1688169728958,0.41190345,30485.0,30484.0,0.29232266]
[1688169729153,0.2482,30485.0,30484.0,0.31055235]
[1688169729558,0.2482,30485.0,30484.0,0.27347321]
[1688169729864,0.2482,30485.0,30484.0,0.31055235]
[1688169730765,0.41190345,30485.0,30484.0,0.31055235]
[1688169732164,0.41190345,30485.0,30484.0,0.29232266]
[1688169732962,0.16370345,30486.0,30484.0,0.67135235]
[1688169733163,0.16370345,30486.0,30485.0,0.26704945]
[1688169733465,0.16419552,30487.0,30485.0,0.3105502]
[1688169733765,0.16419552,30487.0,30486.0,0.28473445]
[1688169734069,0.16419552,30487.0,30486.0,0.30296414]
[1688169734872,0.00049207,30487.0,30486.0,0.30296414]
[1688169735065,0.24869207,30487.0,30486.0,0.267885]
[1688169735262,0.24869207,30487.0,30486.0,0.019685]
[1688169735665,0.24869207,30487.0,30486.0,0.03791469]
[1688169735870,0.24869207,30487.0,30486.0,0.05676414]
[1688169737461,0.24869207,30487.0,30486.0,0.03853445]
[1688169737763,0.24869207,30487.0,30486.0,0.05676414]
[1688169737964,0.24869207,30487.0,30486.0,0.03853445]
[1688169738171,0.24869207,30487.0,30486.0,0.05676414]
[1688169738663,0.00049207,30487.0,30486.0,0.30296414]
[1688169738856,0.14685204,30489.0,30487.0,0.03707914]
[1688169739057,0.11990537,30489.0,30488.0,0.628684]
[1688169739662,0.11990537,30489.0,30488.0,0.66576314]
[1688169740957,0.00049199,30492.0,30491.0,0.267782]
[1688169741162,0.03102249,30492.0,30491.0,0.55106114]
[1688169742056,0.03102249,30492.0,30491.0,0.30296114]
[1688169745370,0.00049199,30492.0,30491.0,0.30296114]
[1688169745565,0.00049199,30492.0,30491.0,0.30587004]
[1688169747473,0.00049199,30492.0,30491.0,0.66667004]
[1688169748071,0.00049199,30492.0,30491.0,0.66376114]
[1688169748570,0.00049199,30492.0,30491.0,0.91196114]
[1688169749563,0.19659756,30500.0,30494.0,0.05]
[1688169749776,0.19659756,30501.0,30499.0,0.609]
[1688169750069,0.19659756,30501.0,30500.0,0.265876]
[1688169750271,0.03052373,30501.0,30500.0,0.30295514]
[1688169750669,0.332,30502.0,30500.0,0.55115514]
[1688169750872,0.3264,30503.0,30502.0,0.019675]
[1688169751075,0.03052276,30503.0,30502.0,0.265875]
[1688169751476,0.03052276,30503.0,30502.0,0.30295414]
[1688169752669,0.0004918,30504.0,30502.0,0.30295414]
[1688169752868,0.0004918,30504.0,30503.0,0.30495314]
[1688169753069,0.03101452,30504.0,30503.0,0.30495314]
[1688169754678,0.02375663,30504.0,30503.0,0.30495314]
[1688169754880,0.05427929,30504.0,30503.0,0.28672345]
[1688169755177,0.30431657,30504.0,30503.0,0.28672345]
[1688169755378,0.30431657,30504.0,30503.0,0.19493101]
[1688169755568,0.30431657,30504.0,30503.0,0.21378046]
[1688169756170,0.30431657,30504.0,30503.0,0.19493101]
[1688169756366,0.30431657,30504.0,30502.0,0.019675]
[1688169756578,0.30431657,30504.0,30499.0,0.3608]
[1688169756579,0.63952266,30503.0,30499.0,0.049192]
[1688169756776,0.019675,30502.0,30500.0,0.019676]
[1688169757080,0.2482,30501.0,30500.0,0.019676]
[1688169757277,0.267875,30501.0,30500.0,0.019676]
[1688169757475,0.27330921,30501.0,30500.0,0.019676]
[1688169757679,0.64496144,30501.0,30497.0,0.0004918]
[1688169757882,0.609,30498.0,30497.0,0.0004918]
[1688169759176,0.7722399,30498.0,30497.0,0.0004918]
[1688169759477,0.7722399,30498.0,30497.0,0.02644969]
[1688169759681,0.7722399,30498.0,30497.0,0.0004918]
[1688169759881,0.7722399,30498.0,30497.0,0.03757094]
[1688169760284,0.7722399,30498.0,30497.0,0.01934125]
[1688169760478,0.7722399,30498.0,30497.0,0.03757094]
[1688169760675,0.609,30498.0,30497.0,0.03757094]
[1688169760880,0.7722399,30498.0,30497.0,0.01934125]
[1688169761483,0.609,30498.0,30497.0,0.0004918]
[1688169762387,0.2482,30498.0,30497.0,0.01872149]
[1688169762789,0.4114399,30498.0,30497.0,0.0004918]
[1688169764390,0.7722399,30498.0,30497.0,0.0004918]
[1688169764587,0.609,30498.0,30497.0,0.0004918]
[1688169765585,0.609,30498.0,30497.0,0.2466918]
[1688169769289,0.609,30498.0,30490.0,0.2462]
[1688169769290,0.01524709,30496.0,30490.0,0.2462]
[1688169769495,0.2482,30491.0,30490.0,0.2462]
[1688169769893,0.37888194,30492.0,30490.0,0.2482]
[1688169770087,0.37888194,30492.0,30491.0,0.2482]
[1688169770489,0.37888194,30492.0,30491.0,0.25125468]
[1688169770689,0.2482,30492.0,30491.0,0.25125468]
[1688169771196,0.609,30492.0,30491.0,0.25125468]
[1688169772603,0.9257,30492.0,30491.0,0.25125468]
[1688169773399,0.5649,30492.0,30491.0,0.25125468]
[1688169774796,0.72825242,30492.0,30491.0,0.25125468]
[1688169775194,0.72795242,30492.0,30491.0,0.24925468]
[1688169775997,0.9254,30492.0,30491.0,0.24925468]
[1688169776197,0.9257,30492.0,30491.0,0.00305468]
[1688169776596,0.95623375,30492.0,30491.0,0.00305468]
[1688169778207,0.9257,30492.0,30491.0,0.00305468]
[1688169778710,0.9562333,30492.0,30491.0,0.00305468]
[1688169783017,0.5954333,30492.0,30491.0,0.00305468]
[1688169783222,0.9562333,30492.0,30491.0,0.00305468]
[1688169785220,0.9562333,30492.0,30491.0,0.25125468]
[1688169785623,0.48025753,30492.0,30491.0,0.27010413]
[1688169785819,0.16355753,30492.0,30491.0,0.27010413]
[1688169786019,0.00049195,30494.0,30491.0,1.22003382]
[1688169786222,0.00049195,30494.0,30493.0,0.2482]
[1688169786620,0.00882977,30494.0,30493.0,0.26642969]
[1688169786824,0.14607712,30496.0,30494.0,0.05]
[1688169787023,0.19659756,30503.0,30495.0,0.87342969]
[1688169787324,0.03052306,30502.0,30500.0,0.6078]
[1688169787540,0.19659756,30503.0,30501.0,0.26704945]
[1688169787833,0.19659756,30503.0,30502.0,0.2482]
[1688169788037,0.22712009,30503.0,30502.0,0.28672445]
[1688169788242,0.22712009,30503.0,30502.0,0.30495414]
[1688169788534,0.03052253,30503.0,30502.0,0.30495414]
[1688169789129,0.22712009,30503.0,30502.0,0.30495414]
[1688169789536,0.03052253,30503.0,30502.0,0.30495414]
[1688169789736,0.03052253,30503.0,30502.0,0.28610469]
[1688169790039,0.22712009,30503.0,30502.0,0.267875]
[1688169790333,0.24679509,30503.0,30502.0,0.267875]
[1688169790533,0.25253122,30503.0,30502.0,0.28610469]
[1688169790929,0.25253122,30503.0,30502.0,0.30495414]
[1688169791635,0.03625866,30503.0,30502.0,0.30495414]
[1688169792639,0.05593266,30503.0,30502.0,0.30495414]
[1688169793032,0.03625866,30503.0,30502.0,0.30495414]
[1688169795038,0.03625866,30503.0,30502.0,0.28610469]
[1688169795440,0.03625866,30503.0,30502.0,0.30495414]
[1688169799745,0.00573613,30503.0,30502.0,0.30495414]
[1688169800838,0.41673333,30503.0,30500.0,0.27301122]
[1688169801047,0.2482,30501.0,30499.0,0.24769177]
[1688169801236,0.628676,30500.0,30499.0,0.26736877]
[1688169801539,0.65920011,30500.0,30499.0,0.26736877]
[1688169801941,0.41100011,30500.0,30499.0,0.26736877]
[1688169802140,0.380476,30500.0,30499.0,0.26736877]
[1688169802749,0.380476,30500.0,30499.0,0.30444791]
[1688169804237,0.41100165,30500.0,30499.0,0.30444791]
[1688169804442,0.41100165,30500.0,30499.0,0.28559846]
[1688169804946,0.41100165,30500.0,30499.0,0.24769177]
[1688169805142,0.65920165,30500.0,30499.0,0.24769177]
[1688169805344,0.65920165,30500.0,30499.0,0.26736877]
[1688169808146,0.41100165,30500.0,30499.0,0.26736877]
[1688169808539,0.41100165,30500.0,30499.0,0.30444791]
[1688169809834,0.380476,30500.0,30499.0,0.30444791]
[1688169811644,0.3608,30500.0,30499.0,0.30444791]
[1688169811846,0.52761757,30500.0,30499.0,0.30444791]
[1688169812052,0.52976305,30500.0,30499.0,0.30444791]
[1688169812750,0.00017824,30500.0,30499.0,0.66524791]
[1688169813053,0.00049177,30505.0,30501.0,0.019676]
[1688169813250,0.00049177,30505.0,30504.0,0.267874]
[1688169813547,0.00049177,30505.0,30504.0,0.30495314]
[1688169813751,0.03101308,30505.0,30504.0,0.30495314]
[1688169814345,0.00049177,30505.0,30504.0,0.30495314]
[1688169814945,0.02016477,30505.0,30504.0,0.30495314]
[1688169815452,0.00049177,30505.0,30504.0,0.30495314]
[1688169820456,0.02457666,30505.0,30504.0,0.267874]
[1688169821753,0.02457666,30505.0,30504.0,0.28610369]
[1688169821954,0.02457666,30505.0,30504.0,0.28672345]
[1688169822457,0.02457666,30505.0,30504.0,0.30495314]
[1688169822658,0.02457666,30505.0,30504.0,0.28672345]
[1688169823153,0.05509868,30505.0,30504.0,0.267874]
[1688169823454,0.05509868,30505.0,30504.0,0.28610369]
[1688169823963,0.05509868,30505.0,30504.0,0.267874]
[1688169824354,0.05370343,30505.0,30504.0,0.267874]
[1688169827363,0.25030099,30505.0,30504.0,0.2482]
[1688169827559,0.49548435,30505.0,30503.0,0.019674]
[1688169827760,0.835664,30504.0,30503.0,0.019674]
[1688169827958,0.855338,30504.0,30503.0,0.019674]
[1688169828462,0.70667839,30504.0,30503.0,0.019674]
[1688169830046,0.70667839,30504.0,30503.0,0.267874]
[1688169830252,0.93602316,30504.0,30503.0,0.267874]
[1688169830763,0.93602316,30504.0,30503.0,0.2482]
[1688169831459,0.93602316,30504.0,30503.0,0.267875]
[1688169832262,0.70667839,30504.0,30503.0,0.267875]
[1688169835266,0.45847839,30504.0,30503.0,0.266875]
[1688169839867,0.68771793,30504.0,30503.0,0.266875]
[1688169840064,0.45847839,30504.0,30503.0,0.266875]
[1688169840371,0.68772132,30504.0,30503.0,0.266875]
[1688169841761,0.6906876,30504.0,30503.0,0.28510469]
[1688169842072,0.6906876,30504.0,30503.0,0.30395414]
[1688169843761,0.6710136,30504.0,30503.0,0.30395414]
[1688169843956,0.69191762,30504.0,30503.0,0.30395414]
[1688169848973,1.00391762,30504.0,30503.0,0.30395414]
[1688169849673,1.00391762,30504.0,30503.0,0.266875]
[1688169850266,1.00391762,30504.0,30503.0,0.28510469]
[1688169854078,1.00391762,30504.0,30503.0,0.266875]
[1688169854285,0.77467469,30504.0,30503.0,0.266875]
[1688169854674,0.77467469,30504.0,30503.0,0.28510469]
[1688169854973,0.77467469,30504.0,30503.0,0.30395414]
[1688169855379,0.77467469,30504.0,30503.0,0.28510469]
[1688169856379,0.77467469,30504.0,30503.0,0.30395414]
[1688169856778,0.77467469,30504.0,30503.0,0.28572445]
[1688169857083,0.77467469,30504.0,30503.0,0.28510469]
[1688169857881,0.77467469,30504.0,30503.0,0.30395414]
[1688169863192,0.77467469,30504.0,30503.0,0.91225414]
[1688169863193,0.08220069,30504.0,30503.0,0.91225414]
[1688169863483,0.03471832,30504.0,30503.0,0.91225414]
[1688169864282,0.05167263,30504.0,30503.0,0.91225414]
[1688169864485,0.0041963,30504.0,30503.0,0.91225414]
[1688169864688,0.08219465,30504.0,30503.0,0.91225414]
[1688169865385,0.00457224,30504.0,30503.0,0.875175]
[1688169865775,0.19666141,30504.0,30503.0,0.89340469]
[1688169865974,0.19666141,30504.0,30503.0,0.91225414]
[1688169866182,0.20018609,30504.0,30503.0,0.91225414]
[1688169866991,0.20018979,30504.0,30503.0,0.91225414]
[1688169867286,0.00352468,30504.0,30503.0,0.91225414]
[1688169867493,0.019674,30506.0,30503.0,0.91225414]
[1688169867796,0.019674,30506.0,30505.0,0.2482]
[1688169867984,0.019674,30506.0,30505.0,0.267874]
[1688169868291,0.019674,30506.0,30505.0,0.30495314]
[1688169868686,0.019674,30506.0,30505.0,0.60585314]
[1688169873388,0.06715129,30506.0,30505.0,0.85395314]
[1688169875194,0.09767248,30506.0,30505.0,0.60575314]
[1688169876696,0.07799848,30506.0,30505.0,0.60575314]
[1688169876893,0.09767148,30506.0,30505.0,0.60575314]
[1688169877192,0.30739163,30506.0,30505.0,0.63182645]
[1688169877781,0.22937844,30507.0,30506.0,0.01822969]
[1688169877981,0.88570068,30513.0,30509.0,0.764271]
[1688169878190,0.26212037,30513.0,30512.0,0.51407]
[1688169878395,0.019668,30513.0,30512.0,0.51407]
[1688169878697,0.019668,30513.0,30512.0,0.53291945]
[1688169878894,0.019668,30513.0,30512.0,0.85901945]
[1688169879086,0.038668,30513.0,30512.0,0.85901945]
[1688169879399,0.019668,30513.0,30512.0,0.85901945]
[1688169880488,0.02886441,30513.0,30512.0,0.61281945]
[1688169882894,0.00919641,30513.0,30512.0,0.61281945]
[1688169883394,0.02886541,30513.0,30512.0,0.26787]
[1688169883596,0.02886541,30513.0,30512.0,0.28671945]
[1688169884895,0.00919641,30513.0,30512.0,0.28671945]
[1688169886005,0.05666585,30513.0,30512.0,0.28671945]
[1688169886997,0.05289575,30513.0,30512.0,0.28671945]
[1688169887204,0.00542631,30513.0,30512.0,0.28671945]
[1688169887900,0.03594175,30513.0,30512.0,0.28671945]
[1688169888100,0.23217605,30513.0,30512.0,0.26787]
[1688169888309,0.29931383,30513.0,30512.0,0.26787]
[1688169888603,0.10307953,30513.0,30512.0,0.26787]
[1688169890006,0.33202877,30513.0,30512.0,0.26787]
[1688169891104,0.38642428,30513.0,30512.0,0.26787]
[1688169891507,0.33202877,30513.0,30512.0,0.26787]
[1688169893105,0.33202877,30513.0,30512.0,0.28671945]
[1688169894103,0.33202877,30513.0,30512.0,0.26787]
[1688169897608,0.10307953,30513.0,30512.0,0.26787]
[1688169898210,0.33202877,30513.0,30512.0,0.26787]
[1688169899015,0.33202877,30513.0,30512.0,0.28671945]
[1688169901319,0.10493729,30513.0,30512.0,0.28671945]
[1688169902123,0.08526829,30513.0,30512.0,0.28671945]
[1688169902313,0.33388553,30513.0,30512.0,0.28671945]
[1688169902615,0.10493629,30513.0,30512.0,0.26787]
[1688169902823,0.10493629,30513.0,30512.0,0.2482]
[1688169903022,0.33388553,30513.0,30512.0,0.2482]
[1688169903612,0.35211522,30513.0,30512.0,0.2482]
[1688169903811,0.33388553,30513.0,30512.0,0.2482]
[1688169905023,0.35211522,30513.0,30512.0,0.2482]
[1688169905327,0.37136598,30513.0,30512.0,0.2482]
[1688169905919,0.37136598,30513.0,30510.0,0.380469]
[1688169905920,0.10493629,30513.0,30511.0,0.06802245]
[1688169906115,0.30701624,30512.0,30511.0,0.049173]
[1688169906316,0.31283589,30512.0,30511.0,0.296373]
[1688169906818,0.31283589,30512.0,30511.0,0.31522245]
[1688169907717,0.31283589,30512.0,30511.0,0.296373]
[1688169907923,0.35073458,30512.0,30511.0,0.296373]
[1688169909230,0.33250489,30512.0,30511.0,0.296373]
[1688169910123,0.31283589,30512.0,30511.0,0.31522245]
[1688169910325,0.31283589,30512.0,30511.0,0.62292245]
[1688169911432,0.31283589,30512.0,30511.0,0.604073]
[1688169912736,0.08380387,30512.0,30511.0,0.604073]
[1688169913125,0.23500194,30512.0,30511.0,0.604073]
[1688169913324,0.31298616,30512.0,30511.0,0.604073]
[1688169914028,0.08380387,30512.0,30511.0,0.604073]
[1688169916530,0.10347287,30512.0,30511.0,0.597275]
[1688169918135,0.36559324,30512.0,30511.0,0.597275]
[1688169918338,0.43340946,30512.0,30511.0,0.597275]
[1688169919823,0.45163915,30512.0,30511.0,0.5549]
[1688169920132,0.45163915,30512.0,30511.0,0.266869]
[1688169920133,0.45163882,30512.0,30511.0,0.266869]
[1688169920533,0.18951845,30512.0,30511.0,0.266869]
[1688169921229,0.15161976,30512.0,30511.0,0.266869]
[1688169921436,0.26798078,30512.0,30511.0,0.266869]
[1688169921739,0.41378089,30512.0,30511.0,0.266869]
[1688169921939,0.41378089,30512.0,30511.0,0.28571845]
[1688169922141,0.15161976,30512.0,30511.0,0.28571845]
[1688169922737,0.15161976,30512.0,30511.0,0.266869]
[1688169922936,0.44601734,30512.0,30511.0,0.266869]
[1688169923125,0.46568634,30512.0,30511.0,0.266869]
[1688169924843,0.17128876,30512.0,30511.0,0.266869]
[1688169925343,0.15161976,30512.0,30511.0,0.266869]
[1688169926037,0.15161976,30512.0,30511.0,0.28571845]
[1688169930446,0.16984945,30512.0,30511.0,0.266869]
[1688169930644,0.15161976,30512.0,30511.0,0.266869]
[1688169930946,0.17128876,30512.0,30511.0,0.266869]
[1688169931937,0.17128876,30512.0,30511.0,0.2472]
[1688169932133,0.18951845,30512.0,30511.0,0.2472]
[1688169933248,0.18951845,30512.0,30511.0,0.266869]
[1688169933639,0.17128876,30512.0,30511.0,0.266869]
[1688169937051,0.15161976,30512.0,30511.0,0.266869]
[1688169937753,0.15161976,30512.0,30511.0,0.28571845]
[1688169939255,0.15161976,30512.0,30511.0,0.266869]
[1688169940857,0.16984945,30512.0,30511.0,0.266869]
[1688169941153,0.18951845,30512.0,30511.0,0.266869]
[1688169941357,0.17128876,30512.0,30511.0,0.266869]
[1688169941558,0.18951845,30512.0,30511.0,0.266869]
[1688169941757,0.17128876,30512.0,30511.0,0.266869]
[1688169942758,0.18951845,30512.0,30511.0,0.266869]
[1688169942951,0.17128876,30512.0,30511.0,0.266869]
[1688169943155,0.18951845,30512.0,30511.0,0.266869]
[1688169943346,0.17128876,30512.0,30511.0,0.266869]
[1688169943654,0.18951845,30512.0,30511.0,0.266869]
[1688169943859,0.18951845,30512.0,30511.0,0.2472]
[1688169945057,0.17128876,30512.0,30511.0,0.2472]
[1688169945253,0.17128876,30512.0,30511.0,0.26687]
[1688169946353,0.18951845,30512.0,30511.0,0.26687]
[1688169947656,0.18951845,30512.0,30511.0,0.2472]
[1688169949059,0.19611845,30512.0,30511.0,0.13840898]
[1688169949257,0.05,30511.0,30505.0,0.2482]
[1688169949458,0.47778896,30506.0,30505.0,0.23902209]
[1688169949657,0.81219453,30506.0,30502.0,0.2472]
[1688169949955,0.24929,30503.0,30502.0,0.019675]
[1688169950147,0.34550391,30503.0,30502.0,0.267075]
[1688169950958,0.06842013,30503.0,30502.0,0.267075]
[1688169951655,0.11590147,30503.0,30502.0,0.267075]
[1688169952661,0.26493583,30503.0,30502.0,0.267075]
[1688169953857,0.24670614,30503.0,30502.0,0.267075]
[1688169954764,0.05019044,30503.0,30502.0,0.267075]
[1688169955462,0.24670614,30503.0,30502.0,0.267075]
[1688169955660,0.24670614,30503.0,30502.0,0.27105787]
[1688169957073,0.06842013,30503.0,30502.0,0.27105787]
[1688169957366,0.05019044,30503.0,30502.0,0.27105787]
[1688169958856,0.06842013,30503.0,30502.0,0.27105787]
[1688169959352,0.05019044,30503.0,30502.0,0.27105787]
[1688169959557,0.06842013,30503.0,30502.0,0.27105787]
[1688169959758,0.05019044,30503.0,30502.0,0.27105787]
[1688169959956,0.03051544,30503.0,30502.0,0.28990732]
[1688169960157,0.16360332,30503.0,30502.0,0.28990732]
[1688169960357,0.16360332,30503.0,30502.0,0.28592445]
[1688169960566,0.16360332,30503.0,30502.0,0.64672445]
[1688169960762,0.16360332,30504.0,30502.0,0.64672445]
[1688169960963,0.16360332,30504.0,30503.0,0.26704945]
[1688169961164,0.16360332,30504.0,30503.0,0.28672345]
[1688169966875,0.16360332,30505.0,30503.0,0.28672345]
[1688169967076,0.16360332,30505.0,30504.0,0.2462]
[1688169967373,0.16360332,30505.0,30504.0,0.28472245]
[1688169969673,0.16409508,30506.0,30504.0,0.28472245]
[1688169969868,0.16409508,30506.0,30505.0,0.28572245]
[1688169970877,0.16409508,30506.0,30505.0,0.64652245]
[1688169972475,0.22256996,30510.0,30505.0,0.89272245]
[1688169972672,0.22256996,30510.0,30508.0,0.409976]
[1688169972673,0.03051809,30509.0,30508.0,0.409976]
[1688169972869,0.03051809,30509.0,30508.0,0.658176]
[1688169973671,0.03051809,30509.0,30508.0,0.67702545]
[1688169973878,0.03051809,30509.0,30508.0,0.658176]
[1688169975078,0.03051809,30509.0,30508.0,0.67702545]
[1688169977486,0.19700737,30512.0,30508.0,0.92342545]
[1688169977674,0.00049167,30512.0,30511.0,0.609]
[1688169977875,0.00049167,30512.0,30511.0,0.628669]
[1688169978174,0.00049167,30512.0,30511.0,0.64751845]